fUSD/lending_fUSD_20251109
["ID","MTS","AMOUNT","RATE_DAILY","PERIOD"]
[393476963,1762707319812,-150.05,0.00039129,60]
[393476964,1762707319837,-1500.0,0.0003913,60]
[393476965,1762707319862,-1500.0,0.0003913,60]
[393476966,1762707319888,-1500.0,0.0003913,60]
[393476967,1762707319913,-1500.0,0.0003913,60]
[393476968,1762707319940,-1500.0,0.0003913,60]
[393476969,1762707319967,-1500.0,0.0003913,60]
[393476970,1762707319993,-1500.0,0.0003913,60]
[393476971,1762707320019,-605.81154,0.0003913,60]
[393476972,1762707320044,-150.05,0.00039133,60]
[393476973,1762707320071,-182.88,0.00039155,60]
[393476974,1762707320097,-445.0,0.00039156,120]
[393476975,1762707320123,-151.0,0.00039158,120]
[393476976,1762707320150,-151.0,0.00039158,120]
[393476977,1762707320177,-151.0,0.00039158,120]
[393476978,1762707320204,-151.0,0.00039158,120]
[393476979,1762707320230,-151.0,0.00039159,120]
[393476980,1762707320256,-151.0,0.00039159,120]
[393476981,1762707320284,-151.0,0.00039159,120]
[393476982,1762707320311,-151.0,0.00039159,120]
[393476983,1762707320337,-151.0,0.00039159,120]
[393476984,1762707320364,-151.0,0.00039159,120]
[393476985,1762707320391,-166.859732,0.00039159,120]
[393476986,1762707320419,-151.0,0.00039159,120]
[393476987,1762707320448,-151.0,0.00039159,120]
[393476988,1762707320476,-151.0,0.00039159,120]
[393476989,1762707320505,-151.0,0.00039159,120]
[393476990,1762707320533,-151.0,0.00039159,120]
[393476991,1762707320924,-152.03,0.00039165,120]
[393476992,1762707320953,-150.0,0.00039177,120]
[393476993,1762707320979,-854.00657,0.00039179,60]
[393476994,1762707321005,-448.10052383,0.00039196,60]
[393476995,1762707321030,-379.0,0.00039203,120]
[393476996,1762707321060,-152.17325599,0.00039265,120]
[393476997,1762707321270,-150.0,0.00039462,120]
[393476998,1762707321301,-748.65989798,0.0004,120]
[393476999,1762707321328,-2592.53203047,0.0004,120]
[393477000,1762707321354,-1895.45823506,0.0004,120]
[393477001,1762707321378,-471.54974912,0.0004,120]
[393477002,1762707321403,-1490.67908667,0.0004,120]
[393477003,1762707321430,-175.83537677,0.0004,120]
[393477004,1762707321457,-177.64246732,0.0004,120]
[393477005,1762707321483,-451.22968919,0.0004,120]
[393477006,1762707321510,-181.87,0.0004,120]
[393477007,1762707321538,-200.0,0.0004,120]
[393477008,1762707321564,-151.49102129,0.0004,120]
[393477009,1762707321590,-150.978591,0.0004,60]
[393477010,1762707321615,-420.45164663,0.0004,120]
[393477011,1762707321641,-125481.0,0.0004,60]
[393477012,1762707321670,-504.74904936,0.0004,120]
[393477013,1762707321697,-2795.48235548,0.0004,60]
[393477014,1762707321725,-500.00000001,0.0004,120]
[393477015,1762707321751,-3410.76,0.0004,120]
[393477016,1762707321777,-671.92,0.0004,120]
[393477017,1762707321803,-410.68,0.0004,120]
[393477018,1762707321832,-739.3,0.0004,120]
[393477019,1762707321860,-2139.48,0.0004,120]
[393477020,1762707321887,-208.49,0.0004,120]
[393477021,1762707321916,-592.86,0.0004,120]
[393477022,1762707321945,-186.28,0.0004,120]
[393477023,1762707321971,-534.56,0.0004,120]
[393477024,1762707321997,-214.65,0.0004,120]
[393477025,1762707322024,-571.64,0.0004,120]
[393477026,1762707322050,-5025.98709394,0.0004,120]
[393477027,1762707322078,-1999.0,0.0004,120]
[393477028,1762707322108,-150.0,0.00040023,120]
[393477029,1762707322136,-150.0,0.00040036,120]
[393477030,1762707322165,-1094.25995714,0.000403,120]
[393477031,1762707322192,-182.0091767,0.000403,120]
[393477032,1762707322218,-185.62238957,0.000403,120]
[393477033,1762707322245,-150.0,0.0004046,120]
[393477034,1762707322272,-884.49166855,0.00041,120]
[393477035,1762707322297,-171.55281635,0.00041,120]
[393477036,1762707322322,-150.0,0.00041,120]
[393477037,1762707322350,-1330.33,0.00041096,120]
[393477038,1762707322375,-553.36,0.00041096,120]
[393477039,1762707322401,-552.02448325,0.000411,120]
[393477040,1762707322426,-200.0,0.00041117,120]
[393477041,1762707322454,-150.0,0.0004126,120]
[393477042,1762707322481,-150.0,0.00041282,120]
[393477043,1762707322509,-1094.25995714,0.000415,120]
[393477044,1762707322535,-182.0091767,0.000415,120]
[393477045,1762707322563,-185.62238957,0.000415,120]
[393477046,1762707322589,-1553.22,0.00041543,120]
[393477047,1762707322616,-150.0,0.00041547,120]
[393477048,1762707322644,-1999.0,0.00041643,120]
[393477049,1762707322671,-150.0,0.00041762,120]
[393477050,1762707322698,-200.0,0.00041788,120]
[393477051,1762707322724,-346.59101335,0.00041999,120]
[393477052,1762707322751,-358.95965861,0.00042,120]
[393477053,1762707322779,-217.44495224,0.00042,120]
[393477054,1762707322805,-311.8513414,0.00042,120]
[393477055,1762707322831,-692.7001388,0.00042,120]
[393477056,1762707322857,-843.93822797,0.00042,120]
[393477057,1762707322887,-1000.0,0.00042,120]
[393477058,1762707322913,-1851.0,0.00042,120]
[393477059,1762707322939,-200.0,0.00042,120]
[393477060,1762707322965,-151.61746747,0.00042,120]
[393477061,1762707322993,-50000.0,0.00042,80]
[393477062,1762707323020,-150.0,0.00042,120]
[393477063,1762707323048,-1541.12,0.00042062,120]
[393477064,1762707323076,-1756.93791741,0.00042121,120]
[393477065,1762707323110,-150.0,0.00042283,120]
[393477066,1762707323138,-313.18011117,0.000425,120]
[393477067,1762707323166,-763.23,0.000425,120]
[393477068,1762707323194,-307.738737,0.000427,90]
[393477069,1762707323225,-150.0,0.00042791,120]
[393477070,1762707323252,-389.01075427,0.00042799,120]
[393477071,1762707323280,-185.64894877,0.00042799,120]
[393477072,1762707323308,-192.31979775,0.00042799,120]
[393477073,1762707323336,-166.85055712,0.000428,120]
[393477074,1762707323365,-343.24646725,0.000428,60]
[393477075,1762707323397,-1094.25995714,0.000428,120]
[393477076,1762707323425,-182.0091767,0.000428,120]
[393477077,1762707323454,-2877.32661386,0.00043,120]
[393477078,1762707323484,-1639.50866316,0.00043,120]
[393477079,1762707323511,-1343.06468111,0.00043,120]
[393477080,1762707323541,-150.0,0.00043,120]
[393477081,1762707323574,-180.2612211,0.00043,120]
[393477082,1762707323602,-2299.43866765,0.00043,120]
[393477083,1762707323630,-50000.0,0.00043,90]
[393477084,1762707323660,-150.0,0.00043,120]
[393477085,1762707323696,-1248.94134875,0.00043,120]
[393477086,1762707323731,-158.475943,0.00043,120]
[393477087,1762707323769,-203.82,0.00043014,120]
[393477088,1762707323806,-351.73817313,0.000431,120]
[393477089,1762707323838,-861.10836865,0.0004314,120]
[393477090,1762707323873,-1001.07806856,0.000432,120]
[393477091,1762707323906,-1018.9882383,0.0004328,120]
[393477092,1762707323942,-150.0,0.00043283,120]
[393477093,1762707323978,-1996.23502218,0.00043287,120]
[393477094,1762707324008,-200.0,0.00043288,120]
[393477095,1762707324038,-1522.8989552,0.000433,120]
[393477096,1762707324073,-150.0,0.00043446,120]
[393477097,1762707324104,-157.15692838,0.000435,120]
[393477098,1762707324133,-379.87488555,0.000437,120]
[393477099,1762707324166,-150.0,0.00043711,120]
[393477100,1762707324373,-442.51290824,0.000438,120]
[393477101,1762707325211,151.61452127,0.000386,120]
[393477102,1762707326274,151.61452127,0.000386,120]
[393477103,1762707326444,463.0,0.0004383,60]
[393477104,1762707326539,161.08685323,0.00043736,60]
[393477105,1762707327159,500.0,0.00030137,120]
[393477106,1762707328617,151.61452127,0.000386,120]
[393477107,1762707331008,273.46475468,0.00038383,89]
[393477108,1762707333654,151.61452127,0.000386,120]
[393477109,1762707333996,575.4070641,0.00043836,60]
[393477110,1762707334075,209.22913863,0.00043836,60]
[393477111,1762707348199,-14039.71836924,0.000372,120]
[393477112,1762707348228,-14039.71836924,0.000372,120]
[393477113,1762707348271,-151.61452127,0.000386,120]
[393477114,1762707348301,-151.61452127,0.000386,120]
[393477115,1762707348336,-151.0,0.00039,120]
[393477116,1762707348367,-1313.11194856,0.000391,120]
[393477117,1762707348727,-265.108545,0.0003916,120]
[393477118,1762707348773,-825.0,0.00043836,60]
[393477119,1762707348802,-200.0,0.00043943,120]
[393477120,1762707348832,-200.0,0.00043943,120]
[393477121,1762707348862,-2160.73982996,0.00043987,120]
[393477122,1762707348890,-656.769217,0.00043999,120]
[393477123,1762707348917,-1442.7487891,0.00044,120]
[393477124,1762707348942,-185.71163842,0.00044,120]
[393477125,1762707348970,-1033.82550138,0.00044,120]
[393477126,1762707348997,-406.45778805,0.00044,120]
[393477127,1762707349024,-153.72723063,0.00044,120]
[393477128,1762707349054,-531.84,0.00044,120]
[393477129,1762707349082,-155.0,0.00044,120]
[393477130,1762707349112,-1000.0,0.00044,120]
[393477131,1762707349139,-200.0,0.00044,120]
[393477132,1762707349165,-3000.0,0.00044,120]
[393477133,1762707349193,-150.0,0.00044,120]
[393477134,1762707349220,-2009.11211474,0.00044,120]
[393477135,1762707349248,-151.0,0.00044,120]
[393477136,1762707349274,-5000.0,0.00044,120]
[393477137,1762707349304,-1098.10569681,0.00044164,120]
[393477138,1762707349333,-158.35253645,0.0004425,120]
[393477139,1762707349358,-205.71590184,0.00044398,120]
[393477140,1762707349386,-715.53394821,0.000445,120]
[393477141,1762707349412,-3000.0,0.000445,120]
[393477142,1762707349439,-684.0,0.000445,120]
[393477143,1762707349469,-150.0,0.00044768,120]
[393477144,1762707349496,-200.0,0.00044788,120]
[393477145,1762707349525,-151.0,0.000448,120]
[393477146,1762707349553,-476.78543818,0.0004489,120]
[393477147,1762707349579,-759.75388298,0.000449,120]
[393477148,1762707349606,-5000.0,0.000449,120]
[393477149,1762707349633,-150.0,0.00044919,120]
[393477150,1762707349659,-3883.11016981,0.0004499,120]
[393477151,1762707349686,-269.97665748,0.00044999,120]
[393477152,1762707349713,-1000.0,0.00044999,120]
[393477153,1762707349741,-500.0,0.00044999,60]
[393477154,1762707349769,-500.0,0.00044999,120]
[393477155,1762707349797,-500.0,0.00044999,60]
[393477156,1762707349825,-478.75725327,0.00044999,60]
[393477157,1762707349853,-500.0,0.00044999,120]
[393477158,1762707349881,-488.40019994,0.00044999,120]
[393477159,1762707349910,-250.0,0.00044999,60]
[393477160,1762707349938,-250.0,0.00044999,120]
[393477161,1762707349966,-151.0,0.00044999,60]
[393477162,1762707349993,-151.0,0.00044999,120]
[393477163,1762707350021,-8038.56,0.00045,120]
[393477164,1762707350049,-222.93,0.00045,120]
[393477165,1762707350084,-652.98581731,0.00045,120]
[393477166,1762707350114,-754.72016367,0.00045,120]
[393477167,1762707350148,-150.87609238,0.00045,120]
[393477168,1762707350181,-2090.33473868,0.00045,120]
[393477169,1762707350208,-474.17685217,0.00045,120]
[393477170,1762707350235,-164.58466333,0.00045,120]
[393477171,1762707350264,-155.0,0.00045,120]
[393477172,1762707350293,-9752.0,0.00045,120]
[393477173,1762707350328,-158.67740497,0.00045,120]
[393477174,1762707350614,-1000000.0,0.00045,120]
[393477175,1762707350643,-1003791.0,0.00045,120]
[393477176,1762707350671,-598.08646117,0.00045,120]
[393477177,1762707350702,-1355.80840497,0.00045,120]
[393477178,1762707350731,-634.021827,0.00045,120]
[393477179,1762707350758,-3000.0,0.00045,120]
[393477180,1762707350785,-995.1217,0.00045,120]
[393477181,1762707350815,-895765.80580552,0.00045,120]
[393477182,1762707361287,-14039.71836924,0.000372,120]
[393477183,1762707361315,-14039.71836924,0.000372,120]
[393477184,1762707361355,-151.61452127,0.000386,120]
[393477185,1762707361382,-151.61452127,0.000386,120]
[393477186,1762707361409,-151.61452127,0.000386,120]
[393477187,1762707361439,-14039.71836924,0.0003906,120]
[393477188,1762707361992,-1313.11194856,0.000403,120]
[393477189,1762707362028,-1313.11194856,0.000415,120]
[393477190,1762707362062,-1313.11194856,0.000428,120]
[393477191,1762707362099,-1313.11194856,0.00044,120]
[393477192,1762707362136,-105438.19419448,0.00045,120]
[393477193,1762707362163,-407.0,0.00045,120]
[393477194,1762707362189,-200.0,0.00045,120]
[393477195,1762707362215,-1009.0,0.00045,120]
[393477196,1762707362243,-156.9,0.00045,85]
[393477197,1762707362273,-1000000.0,0.00045,120]
[393477198,1762707362303,-1000000.0,0.00045,120]
[393477199,1762707362332,-844962.45933975,0.00045,120]
[393477200,1762707366584,-151.61452127,0.000386,120]
[393477201,1762707366967,-814.36616479,0.0004475,120]
[393477202,1762707367003,-155037.54066025,0.00045,120]
[393477203,1762707367038,-1000000.0,0.00045,120]
[393477204,1762707367068,-3050.5471847,0.00045,120]
[393477205,1762707367096,-335.0,0.00045,60]
[393477206,1762707367128,-891.64,0.00045,120]
[393477207,1762707367159,-500000.0,0.00045,120]
[393477208,1762707367187,-11924.81,0.00045,120]
[393477209,1762707367214,-150.0,0.00045,120]
[393477210,1762707367241,-1277.0,0.00045,120]
[393477211,1762707367269,-100000.0,0.00045,120]
[393477212,1762707367297,-21366.26023582,0.00045,120]
[393477213,1762707367330,-1000000.0,0.00045,120]
[393477214,1762707367363,-205001.22123317,0.00045,120]
[393477215,1762707369513,-151.61452127,0.000386,120]
[393477216,1762707369888,-794998.77876683,0.00045,120]
[393477217,1762707369922,-1000000.0,0.00045,120]
[393477218,1762707369951,-4928.39,0.00045,120]
[393477219,1762707369978,-318.0,0.00045,60]
[393477220,1762707370006,-250.16150965,0.00045035,120]
[393477221,1762707370034,-150.40959212,0.000452,120]
[393477222,1762707370064,-2619.36726546,0.00045298,78]
[393477223,1762707370094,-3000.0,0.000455,120]
[393477224,1762707370126,-151.0,0.000455,120]
[393477225,1762707370153,-1573.48359688,0.00045543,120]
[393477226,1762707370183,-500.0,0.00045677,60]
[393477227,1762707370212,-500.0,0.00045677,60]
[393477228,1762707370241,-500.0,0.00045677,60]
[393477229,1762707370269,-429.318,0.00045677,60]
[393477230,1762707370300,-250.0,0.00045677,60]
[393477231,1762707370327,-303.55013525,0.00045677,60]
[393477232,1762707370355,-151.0,0.00045677,60]
[393477233,1762707370380,-577.06852266,0.000457,120]
[393477234,1762707370405,-583.23465388,0.000458,120]
[393477235,1762707370433,-500.0,0.00045999,120]
[393477236,1762707370459,-638.21893161,0.00045999,120]
[393477237,1762707370484,-263.21374862,0.00045999,120]
[393477238,1762707370513,-500.0,0.00045999,120]
[393477239,1762707370542,-500.0,0.00045999,120]
[393477240,1762707370570,-414.0,0.00045999,120]
[393477241,1762707370597,-250.0,0.00045999,120]
[393477242,1762707370624,-250.0,0.00045999,120]
[393477243,1762707370651,-151.0,0.00045999,120]
[393477244,1762707370680,-398.52403265,0.00045999,120]
[393477245,1762707370709,-1000000.0,0.00046,120]
[393477246,1762707370736,-150.0,0.00046,120]
[393477247,1762707370767,-375.95252065,0.00046,120]
[393477248,1762707370794,-594.61674783,0.00046,120]
[393477249,1762707370823,-200.0,0.00046,120]
[393477250,1762707370851,-2392.20280095,0.00046,120]
[393477251,1762707370879,-180486.89465369,0.00046,120]
[393477252,1762707375323,-151.61452127,0.000386,120]
[393477253,1762707375691,-382.30274879,0.0004475,120]
[393477254,1762707375721,-249.87,0.0004475,120]
[393477255,1762707375756,-819513.10534631,0.00046,120]
[393477256,1762707375785,-1000000.0,0.00046,120]
[393477257,1762707375813,-29818.14197211,0.00046,120]
[393477258,1762707375845,-3000.0,0.00046,120]
[393477259,1762707375877,-1000000.0,0.00046,120]
[393477260,1762707375906,-50000.0,0.00046,120]
[393477261,1762707375936,-318.40947976,0.00046,90]
[393477262,1762707375965,-1610.00405971,0.00046,120]
[393477263,1762707375993,-1062.14771694,0.00046,120]
[393477264,1762707376023,-155.0,0.000461,120]
[393477265,1762707376052,-50000.0,0.000461,120]
[393477266,1762707376082,-43739.40415511,0.000461,120]
[393477267,1762707379032,-304.83146142,0.0004475,120]
[393477268,1762707379064,-6260.59584489,0.000461,120]
[393477269,1762707379092,-9000.0,0.000461,60]
[393477270,1762707379129,-2000.0,0.000462,120]
[393477271,1762707379161,-1000000.0,0.0004625,120]
[393477272,1762707379192,-1000000.0,0.0004625,120]
[393477273,1762707379218,-333.050226,0.00046288,120]
[393477274,1762707379245,-151.0,0.000463,120]
[393477275,1762707379271,-228.79224354,0.000464,120]
[393477276,1762707379300,-981721.73022415,0.000465,120]
[393477277,1762707382764,-18278.26977585,0.000465,120]
[393477278,1762707382801,-1000000.0,0.000465,120]
[393477279,1762707382834,-1000000.0,0.000465,120]
[393477280,1762707382866,-10000.0,0.000465,120]
[393477281,1762707382898,-579704.309,0.000465,120]
[393477282,1762707382928,-393.75864082,0.00046575,120]
[393477283,1762707382961,-391623.66258333,0.0004675,120]
[393477284,1762707385785,-608376.33741667,0.0004675,120]
[393477285,1762707385815,-283.2307928,0.0004679,90]
[393477286,1762707385846,-306.86638204,0.000468,120]
[393477287,1762707385875,-611.599297,0.000469,120]
[393477288,1762707385904,-445.0,0.00046988,120]
[393477289,1762707385935,-1000000.0,0.00047,120]
[393477290,1762707385966,-1000000.0,0.00047,120]
[393477291,1762707385993,-150.0,0.00047,120]
[393477292,1762707386023,-2405.00023689,0.00047,120]
[393477293,1762707386050,-2404.50420125,0.00047,120]
[393477294,1762707386079,-20000.0,0.00047,120]
[393477295,1762707386107,-10000.0,0.00047,120]
[393477296,1762707386141,-9752.0,0.00047,120]
[393477297,1762707386175,-345265.46167335,0.00047,120]
[393477298,1762707388947,-654734.53832665,0.00047,120]
[393477299,1762707388976,-151.0,0.00047,120]
[393477300,1762707389004,-155.0,0.000471,120]
[393477301,1762707389036,-1000000.0,0.0004725,120]
[393477302,1762707389064,-180.80333357,0.00047308,120]
[393477303,1762707389094,-1000000.0,0.000475,120]
[393477304,1762707389126,-344778.65833978,0.000475,120]
[393477305,1762707394006,-655221.34166022,0.000475,120]
[393477306,1762707394038,-1000000.0,0.000475,120]
[393477307,1762707394070,-800000.0,0.000475,120]
[393477308,1762707394101,-1000000.0,0.0004775,120]
[393477309,1762707394134,-1000000.0,0.0004775,120]
[393477310,1762707394171,-544778.65833978,0.0004775,120]
[393477311,1762707397679,-455221.34166022,0.0004775,120]
[393477312,1762707397706,-40126.17,0.000478,60]
[393477313,1762707397734,-403.97254281,0.000478,120]
[393477314,1762707397762,-151.0,0.000478,120]
[393477315,1762707397788,-1570.07783709,0.0004789,120]
[393477316,1762707397816,-170.0,0.00048,120]
[393477317,1762707397844,-1000.0,0.00048,120]
[393477318,1762707397871,-1908.51507656,0.00048,120]
[393477319,1762707397898,-202.8522208,0.00048,120]
[393477320,1762707397925,-2781.55047952,0.00048,120]
[393477321,1762707397953,-457.92200647,0.00048,120]
[393477322,1762707397980,-3000.00000102,0.00048,120]
[393477323,1762707398009,-200.0,0.00048,120]
[393477324,1762707398037,-20000.0,0.00048,120]
[393477325,1762707398065,-1192.68314785,0.00048,120]
[393477326,1762707398093,-245.89,0.00048,120]
[393477327,1762707398126,-1000000.0,0.00048,120]
[393477328,1762707398157,-1610.00405971,0.00048,120]
[393477329,1762707398186,-1062.14771694,0.00048,120]
[393477330,1762707398217,-1598.22906325,0.00048,120]
[393477331,1762707398246,-100000.0,0.00048,120]
[393477332,1762707398276,-150.0,0.00048,120]
[393477333,1762707398304,-420.0,0.00048,120]
[393477334,1762707398331,-150.0,0.00048,120]
[393477335,1762707398357,-300.0,0.00048,120]
[393477336,1762707398386,-150.0,0.00048,120]
[393477337,1762707398414,-155.0,0.000481,120]
[393477338,1762707398444,-1000000.0,0.0004825,120]
[393477339,1762707398474,-1000000.0,0.000485,120]
[393477340,1762707398503,-151.0,0.000485,120]
[393477341,1762707398530,-1553.22,0.00048543,120]
[393477342,1762707398562,-1000000.0,0.0004875,120]
[393477343,1762707398592,-1000.0,0.00048771,120]
[393477344,1762707398622,-1025.34,0.00048771,120]
[393477345,1762707398657,-1000.0,0.00048771,120]
[393477346,1762707398688,-1000.0,0.00048771,120]
[393477347,1762707398719,-1000.0,0.00048771,120]
[393477348,1762707398748,-1008.16,0.00048771,120]
[393477349,1762707398777,-1253.91496214,0.00048875,60]
[393477350,1762707398808,-3720.50488449,0.00048875,60]
[393477351,1762707398838,-445.0,0.00048886,120]
[393477352,1762707398871,-274.93041371,0.000489,120]
[393477353,1762707398901,-1000.0,0.00048999,120]
[393477354,1762707398935,-351340.57392742,0.00049,120]
[393477355,1762707404753,-648659.42607258,0.00049,120]
[393477356,1762707404782,-429.38167905,0.00049,120]
[393477357,1762707404813,-1038.66801797,0.00049,120]
[393477358,1762707404841,-507.33836548,0.00049,120]
[393477359,1762707404870,-566.19166452,0.00049,120]
[393477360,1762707404900,-156.5773492,0.00049,120]
[393477361,1762707404928,-3000.0,0.00049,120]
[393477362,1762707404956,-20000.0,0.00049,120]
[393477363,1762707404983,-180.03512355,0.00049,120]
[393477364,1762707405011,-3103.0,0.00049,120]
[393477365,1762707405044,-9752.0,0.00049,120]
[393477366,1762707405073,-651.832447,0.00049,90]
[393477367,1762707405102,-150.0,0.00049015,60]
[393477368,1762707405134,-150.0,0.00049015,60]
[393477369,1762707405162,-150.0,0.00049015,60]
[393477370,1762707405191,-250.0,0.00049015,60]
[393477371,1762707405220,-368.85862436,0.00049041,120]
[393477372,1762707405248,-2137.67302684,0.000492,120]
[393477373,1762707405277,-155.0,0.000492,120]
[393477374,1762707405306,-151.0,0.000492,120]
[393477375,1762707405339,-881.94542447,0.00049241,60]
[393477376,1762707405367,-631.3022254,0.00049241,60]
[393477377,1762707405399,-1000000.0,0.0004925,120]
[393477378,1762707405428,-1541.12,0.00049257,120]
[393477379,1762707405456,-289.61142341,0.00049315,120]
[393477380,1762707405485,-1202.61,0.00049315,120]
[393477381,1762707405517,-1202.61,0.00049315,120]
[393477382,1762707405546,-1202.61,0.00049315,120]
[393477383,1762707405578,-1202.61,0.00049315,120]
[393477384,1762707405607,-1202.61,0.00049315,120]
[393477385,1762707405635,-1202.61,0.00049315,120]
[393477386,1762707405663,-1202.61,0.00049315,120]
[393477387,1762707405692,-1202.61,0.00049315,120]
[393477388,1762707405719,-1202.61,0.00049315,120]
[393477389,1762707405747,-1202.61,0.00049315,120]
[393477390,1762707405774,-1202.61,0.00049315,120]
[393477391,1762707405802,-1202.61,0.00049315,120]
[393477392,1762707405833,-1202.61,0.00049315,120]
[393477393,1762707405861,-1202.61,0.00049315,120]
[393477394,1762707405890,-1202.61,0.00049315,120]
[393477395,1762707405918,-1202.61,0.00049315,120]
[393477396,1762707405946,-1202.61,0.00049315,120]
[393477397,1762707405973,-1202.61,0.00049315,120]
[393477398,1762707406000,-1202.61,0.00049315,120]
[393477399,1762707406027,-1202.61,0.00049315,120]
[393477400,1762707406057,-1202.61,0.00049315,120]
[393477401,1762707406086,-1202.61,0.00049315,120]
[393477402,1762707406112,-1202.61,0.00049315,120]
[393477403,1762707406144,-1202.6346712,0.00049315,120]
[393477404,1762707407223,249.43191666,0.0004875,120]
[393477405,1762707410257,700.0,0.0004875,120]
[393477406,1762707411532,1927.84364465,0.0004931,60]
[393477407,1762707508432,366.0,0.0003013,120]
[393477408,1762707509242,202.61905205,0.0003013,120]
[393477410,1762707675487,-156.56,0.0001603,2]
[393477411,1762707675512,-143.47912652,0.00016515,2]
[393477412,1762707677383,-51.52087348,0.00016515,2]
[393477413,1762707677405,-232.40698235,0.00016515,2]
[393477477,1762707975161,-267.17748346,0.000165,2]
[393477478,1762707980306,-275.56214866,0.000165,2]
[393477479,1762707982842,-280.78466054,0.000165,2]
[393477480,1762707986618,-221.25861658,0.000165,2]
[393477481,1762707988649,-195.90182226,0.000165,2]
[393477482,1762708006079,-290.981863,0.000165,2]
[393477483,1762708008843,-233.56092777,0.000165,2]
[393477484,1762708011818,-210.4552947,0.000165,2]
[393477486,1762708043984,772.98,0.00013699,2]
[393477513,1762708231543,-45957.84522453,0.000165,2]
[393477514,1762708231702,-30774.84693327,0.000165,2]
[393477515,1762708231714,-1231.2331789,0.000165,2]
[393477525,1762708237465,-604.0,0.000165,2]
[393477526,1762708237520,-331.00000005,0.000165,2]
[393477527,1762708237573,-749.91772685,0.000165,2]
[393477531,1762708239571,-61596.41064342,0.000165,2]
[393477532,1762708239630,-1761.20351702,0.000165,2]
[393477533,1762708239642,-4002.49910403,0.000165,2]
[393477534,1762708239654,-1037.7,0.000165,2]
[393477535,1762708239711,-899.19310833,0.000165,2]
[393477536,1762708239722,-2752.82663604,0.000165,2]
[393477537,1762708239734,-2350.60887344,0.000165,2]
[393477538,1762708239745,-404.8,0.000165,2]
[393477539,1762708239796,-699.58053559,0.000165,2]
[393477540,1762708239849,-254762.70744034,0.000165,2]
[393477541,1762708239949,-561.93090022,0.000165,2]
[393477542,1762708239960,-2981.511028,0.000165,2]
[393477556,1762708242680,-338.9968582,0.000165,2]
[393477557,1762708242692,-347.65681638,0.000165,2]
[393477558,1762708242704,-37564.77322237,0.000165,2]
[393477559,1762708242715,-23287.77114653,0.000165,2]
[393477560,1762708242809,-3274.67956398,0.000165,2]
[393477561,1762708242821,-5953.8312594,0.000165,2]
[393477562,1762708242982,-664.87786258,0.000165,2]
[393477563,1762708242993,-578.34,0.000165,2]
[393477564,1762708243026,-657.2440584,0.000165,2]
[393477574,1762708245645,-1081.2630522,0.000165,2]
[393477575,1762708245740,-309.73712268,0.000165,2]
[393477576,1762708245752,-291.23750263,0.000165,2]
[393477577,1762708245808,-432.60481996,0.000165,2]
[393477578,1762708245819,-1012.2113831,0.000165,2]
[393477579,1762708245847,-835.29999935,0.000165,2]
[393477580,1762708245859,-484.62442324,0.000165,2]
[393477581,1762708245870,-1125.6,0.000165,2]
[393477582,1762708245885,-1223.0834699,0.000165,2]
[393477583,1762708246183,-1320.0,0.000165,2]
[393477669,1762708284647,-166.66,0.0002332,30]
[393477670,1762708284682,-166.66,0.00023782,30]
[393477671,1762708300173,-166.66,0.00024244,30]
[393477672,1762708312640,-1072.38001153,0.000165,2]